Workbook

Sheet 試算シートの使い方
A1: 退職手当試算シートの使用について
H2: R8.4.1 現在
A3: １ 用意するもの
A4: （１） | B4: 履歴書
A5: （２） | B5: 給与明細（最新のもの）
A7: ２ 使用方法
A8: （１） | B8: 入力シートを開きます。
A9: （２） | B9: 入力シートの説明を参考に履歴書等を見ながら該当箇所に入力してください。
A11: ※ 不明な点は、所属の事務職員に確認するか、福利課企画管理班まで御連絡く
A12: ださい。（022-211-3672）
A60: ３ 試算結果の印刷
A62: （１） ５ 調整額まで入力し終わりましたら、印刷シートを開きます。
A75: （２） 試算結果が表示されていますので、印刷してください。
A77: （３） 試算結果が表示されていますので、印刷してください。
A78: （２） 試算結果が表示されていますので、印刷してください。
A79: （１） 試算結果が表示されていますので、印刷してください。
A80: （０） 試算結果が表示されていますので、印刷してください。
A81: （１） 試算結果が表示されていますので、印刷してください。

Sheet 入力シート
B2: 退職手当試算入力シート | AN2: 入力箇所(必須） | BA2: 入力箇所（場合によって）
B4: 退職時のおおよその退職手当額を試算します。 正確な退職手当額は昇給等を考慮した上で決定されることとなりますので、参考程度にお考えください。 黄色セル、（場合によっては）青色セルに入力してください。
A6: 1 | B6: 試算希望者の氏名を入力してください。
B8: 氏 名
B9: 福 花子
A12: 2 | B12: 退職事由を選んでください。（プルダウンから選択してください。）
B13: 定年扱い | Q13: ※退職事由によって退職手当額が大きく異なります。
Q14: ※退職年月日が６０歳の誕生日以降であれば、定年扱いを選んでください。
A16: 3 | B16: 採用及び退職年月日を入力してください。
B17: また、休職等除算期間がある場合には入力してください。
B19: 採用年月日 | P19: 1991-04-01 | AJ19: 勤続期間 | AX19: =TRUNC(IF(MONTH(P21)<MONTH(P19),(YEAR(P21)-YEAR(P19))*12+MONTH(P21)-MONTH(P19)+1,(YEAR(P21)-YEAR(P19))*12+MONTH(P21)-MONTH(P19)+1)/12) -> 36 | BB19: 年 | BF19: =MOD(IF(MONTH(P21)<MONTH(P19),(YEAR(P21)-YEAR(P19))*12+MONTH(P21)-MONTH(P19)+1,(YEAR(P21)-YEAR(P19))*12+MONTH(P21)-MONTH(P19)+1),12) -> 0 | BJ19: 月 | BO19: a | BQ19: =(YEAR(P21)-YEAR(P19))*12+MONTH(P21)-MONTH(P19)+1 -> 432
B21: 退職年月日 | P21: 2027-03-31
B23: ※ 前歴に他の公務員期間があり、引き続いて採用になった方は、その期間が通算される場合があります。
B24: この場合には、前歴も含めた採用年数を入力してください。
C25: (1) 育児休業
F26: 子の誕生日 | P26: 1993-12-25 | AW26: 除算（１）
F27: 休業期間 | P27: 1994-02-19 | AD27: ～ | AH27: 1995-03-31 | AW27: =IFERROR(ROUNDDOWN(BW30/12,0),0) -> 0 | BB27: 年 | BE27: =IFERROR(MOD(BW30,12),0) -> 4.8 | BK27: 月除算
P29: 子が１歳になる日 | BL29: 月数 | BN29: 割合
F30: =EOMONTH(P30,-1) -> 1994-11-30 | P30: =P26+364 -> 1994-12-24 | AA30: ① | AD30: =IF(P27="","",IF(DAY(P27)=1,P27,IF(DAY(P27)<>1,EOMONTH(P27,0)+1,""))) -> 1994-03-01 | AV30: =IF(AH27>P30,EOMONTH(F30,1),IF(AH27="","",IF(EOMONTH(AH27,0)<>AH27,EOMONTH(AH27,-1),IF(AH27=EOMONTH(AH27,0),AH27,"")))) -> 1994-12-31 | BJ30: =IFERROR(DATEDIF(AD30,AV30,"M")+1,"") -> 10 | BN30: 3 | BS30: =IFERROR(ROUNDDOWN(BJ30/BN30,1),0) -> 3.3 | BW30: =IFERROR(BS30+BS31,"") -> 4.8
AA31: ② | AD31: =IF(AV30<>F30,AV30+1,"") -> 1995-01-01 | AV31: =IF(AH27="","",IF(EOMONTH(AH27,0)<>AH27,EOMONTH(AH27,-1),IF(AH27=EOMONTH(AH27,0),AH27,""))) -> 1995-03-31 | BJ31: =IFERROR(DATEDIF(AD31,AV31,"M")+1,"") -> 3 | BN31: 2 | BS31: =IF(BJ31="",0,(ROUNDDOWN(BJ31/BN31,1))) -> 1.5
C33: (2) 休職、停職、大学院修学休業
F34: 休業種類 | P34: 休職 | AW34: 除算（２）
F35: 休業期間 | P35: 2020-01-02 | AD35: ～ | AH35: 2020-03-31 | AW35: =IFERROR(ROUNDDOWN(BW38/12,0),0) -> 0 | BB35: 年 | BE35: =IFERROR(MOD(BW38,12),0) -> 1 | BK35: 月除算
BL37: 月数 | BN37: 割合
AD38: =IF(P35="","",IF(DAY(P35)=1,P35,IF(DAY(P35)<>1,EOMONTH(P35,0)+1,""))) -> 2020-02-01 | AV38: =IF(AH35="","",IF(EOMONTH(AH35,0)<>AH35,EOMONTH(AH35,-1),IF(AH35=EOMONTH(AH35,0),AH35,""))) -> 2020-03-31 | BJ38: =IFERROR(DATEDIF(AD38,AV38,"M")+1,"") -> 2 | BN38: 2 | BS38: =IFERROR(ROUNDDOWN(BJ38/BN38,1),0) -> 1 | BW38: =IFERROR(BS38+BS39,"") -> 1 | BZ38: ｂ | CA38: =IFERROR(BZ39*12+CB39,0) -> 19.8
BS39: =IF(BJ39="",0,(ROUNDDOWN(BJ39/BN39,1))) -> 0 | BZ39: =IFERROR(AW27+AW35,"")+P44 -> 1 | CA39: 年 | CB39: =IFERROR(BE27+BE35,"")+W44 -> 7.8 | CC39: 月
C42: (3) 上記以外に除算期間がある場合
AF43: 勤続年数は | AW43: =IF(BU44="",0,IF(AND(BU44>=6,BU44<12),1,IFERROR(ROUNDDOWN(BU44/12,0),"1"))) -> 34 | BJ43: 年 | BP43: a-b
F44: さらに除く年月数 | P44: 1 | U44: 年 | W44: 2 | AB44: 月 | BU44: =IF(BQ19="","",IFERROR(BQ19-CA38,"")) -> 412.2
BD45: （１年未満切り捨て）
B47: ※ 除算期間が（１）、（２）以外にある場合は、下記の表を参考に（３）に入力してください。
A59: 4 | B59: 現在の給料表、号俸と、教職調整額、給料の調整額（発令されている場合）を入力します。
B60: 手元にある書類にしたがって、（１）と（２）どちらかに入力してください。
B62: （１）手元にあるものが履歴書の場合
B64: 給料表 | U64: 号俸 | AN64: 給料の調整数
B65: 教育（二） | U65: 3 | Z65: 級 | AC65: 50 | AH65: 号俸
AC67: .
U68: =IFERROR(給料表計算シート!E12,"") -> 423800
B69: 労務職員（技能職給料表適用職員）の場合は平成２７年３月３１日現在の号俸も入力して下さい。 | U69: Ｈ27.3.31現在号俸 | AN69: Ｈ27.3.31現在仮定月額
R70: ⇒ | Z70: 級 | AH70: 号俸 | AN70: =IF(給料表計算シート!E21="",0,給料表計算シート!E21) -> 0 | BA70: 円
B73: 本俸（給料表上の月額） | U73: 教職調整額 | AN73: 給料の調整額
B74: =IF(U68>AN70,U68,IF(U68>AN70,U68,AN70)) -> 423800 | O74: 円 | U74: =IF(AND(B65="教育（一）",U65=3),11500, IF(AND(B65="教育（二）",U65=3),11500, IF(AND(B65="教育（一）",U65=4),3800, IF(AND(B65="教育（二）",U65=4),4000, IF(AND(B65<>"教",ISNUMBER(SEARCH("教",B65)),OR(U65=1,U65=2)),B74*0.05, 0))))) -> 11500 | AH74: 円 | AN74: =IF(AN65="",0,給料表計算シート!F12) -> 0 | BA74: 円 | BG74: =SUM(B74+U74+AN74) -> 435300
A77: ※ | B77: 教育（一）は高校等の教員、教育（二）は小中学校の教員の給料表です。
A78: ※ | B78: 医療職（二）は栄養職員等の給料表です。
B93: （２）手元にあるものが給与明細の場合
B95: 給料月額（調整額含） | U95: 教職調整額
O96: 円 | AH96: 円 | BG96: =SUM(B96+U96+AN96) -> 0
A112: 5 | B112: 調整額を算出するため、各該当期間の 職名 または 給料表および号俸 を入力してください。
B113: ※ 退職事由が「自己都合」で勤続期間が１０年未満の場合、調整額は支給されないため、入力不要です。
B114: （１）教職職給料表(一)(二)が適用されている者
B115: 職名 | H115: 該当期間 | Z115: 区分 | AF115: 調整月数 | AL115: 調整額
BY116: 校長 | BZ116: 第５号 | CA116: 54150
B117: 教頭 | H117: =DATE(YEAR($R$117)-(MONTH($R$117)<4),4,1) -> 2026-04-01 | P117: ～ | R117: =P21 -> 2027-03-31 | Z117: =IF(B117="","",VLOOKUP(B117,$BY$116:$CA$120,2,0)) -> 第７号 | AF117: =IF(B117="","",DATEDIF(H117,R117,"M")+1) -> 12 | AL117: =IF(B117="","",VLOOKUP(B117,$BY$116:$CA$120,3,0)*AF117) -> 390000 | BY117: 副校長 | BZ117: 第６号 | CA117: 43350
BY118: 教頭 | BZ118: 第７号 | CA118: 32500
B119: 教頭 | H119: =DATE(YEAR($R$119)-(MONTH($R$119)<4),4,1) -> 2025-04-01 | P119: ～ | R119: =H117-1 -> 2026-03-31 | Z119: =IF(B119="","",VLOOKUP(B119,$BY$116:$CA$120,2,0)) -> 第７号 | AF119: =IF(B119="","",DATEDIF(H119,R119,"M")+1) -> 12 | AL119: =IF(B119="","",VLOOKUP(B119,$BY$116:$CA$120,3,0)*AF119) -> 390000 | BY119: 教諭(特２) | BZ119: 第８号 | CA119: 27100
BY120: 教諭 | BZ120: 第９号 | CA120: 21700
B121: 教頭 | H121: =DATE(YEAR($R$121)-(MONTH($R$121)<4),4,1) -> 2024-04-01 | P121: ～ | R121: =H119-1 -> 2025-03-31 | Z121: =IF(B121="","",VLOOKUP(B121,$BY$116:$CA$120,2,0)) -> 第７号 | AF121: =IF(B121="","",DATEDIF(H121,R121,"M")+1) -> 12 | AL121: =IF(B121="","",VLOOKUP(B121,$BY$116:$CA$120,3,0)*AF121) -> 390000
B123: 教諭 | H123: =DATE(YEAR($R$123)-(MONTH($R$123)<4),4,1) -> 2023-04-01 | P123: ～ | R123: =H121-1 -> 2024-03-31 | Z123: =IF(B123="","",VLOOKUP(B123,$BY$116:$CA$120,2,0)) -> 第９号 | AF123: =IF(B123="","",DATEDIF(H123,R123,"M")+1) -> 12 | AL123: =IF(B123="","",VLOOKUP(B123,$BY$116:$CA$120,3,0)*AF123) -> 260400
B125: 教諭 | H125: =DATE(YEAR($R$125)-(MONTH($R$125)<4),4,1) -> 2022-04-01 | P125: ～ | R125: =H123-1 -> 2023-03-31 | Z125: =IF(B125="","",VLOOKUP(B125,$BY$116:$CA$120,2,0)) -> 第９号 | AF125: =IF(B125="","",DATEDIF(H125,R125,"M")+1) -> 12 | AL125: =IF(B125="","",VLOOKUP(B125,$BY$116:$CA$120,3,0)*AF125) -> 260400 | BA125: （１）合計 | BG125: =SUM( IFERROR(LARGE(AF117:AK128, 1), 0), IFERROR(LARGE(AF117:AK128, 2), 0), IFERROR(LARGE(AF117:AK128, 3), 0), IFERROR(LARGE(AF117:AK128, 4), 0), IFERROR(LARGE(AF117:AK128, 5), 0) ) -> 60 | BM125: 月
B127: 教諭 | H127: =DATE(YEAR($R$127)-(MONTH($R$127)<4),4,1) -> 2021-04-01 | P127: ～ | R127: =H125-1 -> 2022-03-31 | Z127: =IF(B127="","",VLOOKUP(B127,$BY$116:$CA$120,2,0)) -> 第９号 | AF127: =IF(B127="","",DATEDIF(H127,R127,"M")+1) -> 12 | AL127: =IF(B127="","",VLOOKUP(B127,$BY$116:$CA$120,3,0)*AF127) -> 260400 | BD127: =SUM( IFERROR(LARGE(AL117:AS128, 1), 0), IFERROR(LARGE(AL117:AS128, 2), 0), IFERROR(LARGE(AL117:AS128, 3), 0), IFERROR(LARGE(AL117:AS128, 4), 0), IFERROR(LARGE(AL117:AS128, 5), 0) ) -> 1690800 | BM127: 円
B130: （２）上記以外の者
B131: 給料表 | H131: 号俸 （級） | N131: 該当期間 | AF131: 区分 | AL131: 調整月数 | AR131: 調整額 | BY131: ↓（２）の給料表・号俸を入れると表示される
BY132: =B133&H133 ->  | BZ132: 行政８級 | CA132: 第４号 | CB132: 59550
N133: =DATE(YEAR($X$133)-(MONTH($X$133)<4),4,1) -> 2026-04-01 | V133: ～ | X133: =P21 -> 2027-03-31 | AF133: =IF(OR(B133="",H133=""),"",VLOOKUP(BY132,$BZ$132:$CB$163,2,0)) ->  | AL133: =IF(OR(B133="",H133=""),"",DATEDIF(N133,X133,"M")+1) ->  | AR133: =IF(OR(B133="",H133=""),"",VLOOKUP(BY132,$BZ$132:$CB$163,3,0)*AL133) ->  | BY133: =B135&H135 ->  | BZ133: 行政７級 | CA133: 第５号 | CB133: 54150
BY134: =B137&H137 ->  | BZ134: 行政６級 | CA134: 第６号 | CB134: 43350
N135: =DATE(YEAR($X$135)-(MONTH($X$135)<4),4,1) -> 2025-04-01 | V135: ～ | X135: =N133-1 -> 2026-03-31 | AF135: =IF(OR(B135="",H135=""),"",VLOOKUP(BY133,$BZ$132:$CB$163,2,0)) ->  | AL135: =IF(OR(B135="",H135=""),"",DATEDIF(N135,X135,"M")+1) ->  | AR135: =IF(OR(B135="",H135=""),"",VLOOKUP(BY133,$BZ$132:$CB$163,3,0)*AL135) ->  | BY135: =B139&H139 ->  | BZ135: 行政５級 | CA135: 第７号 | CB135: 32500
BY136: =B141&H141 ->  | BZ136: 行政４級 | CA136: 第８号 | CB136: 27100
N137: =DATE(YEAR($X$137)-(MONTH($X$137)<4),4,1) -> 2024-04-01 | V137: ～ | X137: =N135-1 -> 2025-03-31 | AF137: =IF(OR(B137="",H137=""),"",VLOOKUP(BY134,$BZ$132:$CB$163,2,0)) ->  | AL137: =IF(OR(B137="",H137=""),"",DATEDIF(N137,X137,"M")+1) ->  | AR137: =IF(OR(B137="",H137=""),"",VLOOKUP(BY134,$BZ$132:$CB$163,3,0)*AL137) ->  | BY137: =B143&H143 ->  | BZ137: 行政３級 | CA137: 第９号 | CB137: 21700
BZ138: 行政２級 | CA138: 第１０号 | CB138: 0
N139: =DATE(YEAR($X$139)-(MONTH($X$139)<4),4,1) -> 2023-04-01 | V139: ～ | X139: =N137-1 -> 2024-03-31 | AF139: =IF(OR(B139="",H139=""),"",VLOOKUP(BY135,$BZ$132:$CB$163,2,0)) ->  | AL139: =IF(OR(B139="",H139=""),"",DATEDIF(N139,X139,"M")+1) ->  | AR139: =IF(OR(B139="",H139=""),"",VLOOKUP(BY135,$BZ$132:$CB$163,3,0)*AL139) ->  | BZ139: 行政１級 | CA139: 第１０号 | CB139: 0
BZ140: 研究５級 | CA140: 第４号 | CB140: 59550
N141: =DATE(YEAR($X$141)-(MONTH($X$141)<4),4,1) -> 2022-04-01 | V141: ～ | X141: =N139-1 -> 2023-03-31 | AF141: =IF(OR(B141="",H141=""),"",VLOOKUP(BY136,$BZ$132:$CB$163,2,0)) ->  | AL141: =IF(OR(B141="",H141=""),"",DATEDIF(N141,X141,"M")+1) ->  | AR141: =IF(OR(B141="",H141=""),"",VLOOKUP(BY136,$BZ$132:$CB$163,3,0)*AL141) ->  | BA141: （２）合計 | BG141: =SUM( IFERROR(LARGE(AL133:AQ144, 1), 0), IFERROR(LARGE(AL133:AQ144, 2), 0), IFERROR(LARGE(AL133:AQ144, 3), 0), IFERROR(LARGE(AL133:AQ144, 4), 0), IFERROR(LARGE(AL133:AQ144, 5), 0) ) -> 0 | BM141: 月 | BZ141: 研究４級 | CA141: 第６号 | CB141: 43350
BZ142: 研究３級 | CA142: 第８号 | CB142: 27100
N143: =DATE(YEAR($X$143)-(MONTH($X$143)<4),4,1) -> 2021-04-01 | V143: ～ | X143: =N141-1 -> 2022-03-31 | AF143: =IF(OR(B143="",H143=""),"",VLOOKUP(BY137,$BZ$132:$CB$163,2,0)) ->  | AL143: =IF(OR(B143="",H143=""),"",DATEDIF(N143,X143,"M")+1) ->  | AR143: =IF(OR(B143="",H143=""),"",VLOOKUP(BY137,$BZ$132:$CB$163,3,0)*AL143) ->  | BD143: =SUM( IFERROR(LARGE(AR133:AY144, 1), 0), IFERROR(LARGE(AR133:AY144, 2), 0), IFERROR(LARGE(AR133:AY144, 3), 0), IFERROR(LARGE(AR133:AY144, 4), 0), IFERROR(LARGE(AR133:AY144, 5), 0) ) -> 0 | BM143: 円 | BZ143: 研究２級 | CA143: 第９号 | CB143: 21700
BZ144: 研究１級 | CA144: 第１０号 | CB144: 0
BZ145: 医療（二）７級 | CA145: 第５号 | CB145: 54150
AF146: 調整額合計は | AW146: =(IF(B13="自己都合",IF(AW43<=9,0,IF(AND(AW43>=10,AW43<=24),BD127/2,BD127)),BD127))+IF(B13="自己都合",IF(AW43<=9,0,IF(AND(AW43>=10,AW43<=24),BD143/2,BD143)),BD143) -> 1690800 | BJ146: 円 | BZ146: 医療（二）６級 | CA146: 第６号 | CB146: 43350
BZ147: 医療（二）５級 | CA147: 第８号 | CB147: 27100
AU148: （調整月数計 | BD148: =BG125+BG141 -> 60 | BH148: 月） | BZ148: 医療（二）４級 | CA148: 第９号 | CB148: 21700
AF149: ※調整額合計は、高額な方から60月分の合計 | BO149: # 使用例 | BZ149: 医療（二）３級 | CA149: 第９号 | CB149: 21700
AF150: ※自己都合退職者のうち、 | BZ150: 医療（二）２級 | CA150: 第１０号 | CB150: 0
AH151: 勤続年数が10～24年：（１）又は（２）の2分の1の額 | BZ151: 医療（二）１級 | CA151: 第１０号 | CB151: 0
AH152: 勤続年数が9年以下：調整額は不支給 | BO152: result = adjust_bd126(15, 100) # 15は10～24の範囲内なのでBD126の値100を2分の1にして50を返す | BZ152: 技能５級 | CA152: 第８号 | CB152: 27100
BO153: print(result) # 出力: 50 | BZ153: 技能４級 | CA153: 第９号 | CB153: 21700
BZ154: 技能３級 | CA154: 第９号 | CB154: 21700
BO155: result = adjust_bd126(25, 100) # 25は範囲外なのでBD126の値100をそのまま返す | BZ155: 技能２級 | CA155: 第１０号 | CB155: 0
BO156: print(result) # 出力: 100 | BZ156: 技能１級 | CA156: 第１０号 | CB156: 0
BZ157: 医療（三）７級 | CA157: 第５号 | CB157: 54150
BZ158: 医療（三）６級 | CA158: 第６号 | CB158: 43350
BZ159: 医療（三）５級 | CA159: 第８号 | CB159: 27100
BZ160: 医療（三）４級 | CA160: 第９号 | CB160: 21700
BZ161: 医療（三）３級 | CA161: 第９号 | CB161: 21700
BZ162: 医療（三）２級 | CA162: 第１０号 | CB162: 0
BZ163: 医療（三）１級 | CA163: 第１０号 | CB163: 0

Sheet 印刷シート
B2: 退職手当計算内訳書 （試算） | J2: 氏名： | L2: =IF(入力シート!B9="","",入力シート!B9) -> 福 花子 | O2: =TODAY() -> 2026-08-07 | T2: 現在 | AB2: =IF(入力シート!B13="自己都合","自己都合",IF(入力シート!B13="定年扱い","定年扱い")) -> 定年扱い
J3: 事由： | L3: =$AB$2&"退職" -> 定年扱い退職
B4: 退 | C4: 給 | F4: =入力シート!B65 -> 教育（二） | J4: 勤 | K4: 在職年数 | L4: =入力シート!P19 -> 1991-04-01 | P4: から
B5: 職 | C5: 料 | D5: 級号俸 | F5: =IF(入力シート!U65="","",IF(F8=入力シート!AN70,入力シート!U70,入力シート!U65)) -> 3 | G5: 級 | H5: =IF(入力シート!AC65="","",IF(F8=入力シート!AN70,入力シート!AC70,入力シート!AC65)) -> 50 | I5: 号俸 | J5: 続 | L5: =入力シート!P21 -> 2027-03-31 | P5: まで | R5: =入力シート!$AX$19 -> 36 | S5: 年 | T5: =入力シート!$BF$19 -> 0 | U5: 月
B6: 時 | C6: 月 | J6: 年 | L6: 計(ｱ) | R6: =R5 -> 36 | S6: 年 | T6: =T5 -> 0 | U6: 月 | W6: =R6*12+T6 -> 432
B7: の | C7: 額 | J7: 数 | K7: 除算年数 | L7: =IF(AND(入力シート!$AW$27=0,入力シート!$BE$27=0),"",入力シート!AD30) -> 1994-03-01 | M7: から | P7: =IF(L7="","","育休") -> 育休
B8: 給 | D8: 給料(A) | F8: =入力シート!$B$74+入力シート!$B$96 -> 423800 | I8: 円 | L8: =IF(AND(入力シート!$AW$27=0,入力シート!$BE$27=0),"",入力シート!AV31) -> 1995-03-31 | M8: まで | O8: =IF(P7="","","(1)") -> (1) | R8: =IF(P7="","",入力シート!AW27) -> 0 | S8: 年 | T8: =IF(P7="","",入力シート!BE27) -> 4.8 | U8: 月
B9: 与 | L9: =IF(AND(入力シート!$AW$35=0,入力シート!$BE$35=0),"",入力シート!AD38) -> 2020-02-01 | M9: から | P9: =IF(L9="","",入力シート!$P$34) -> 休職
B10: 等 | L10: =IF(AND(入力シート!AW35,入力シート!BE35=0),"",入力シート!AV38) -> 2020-03-31 | M10: まで | O10: =IF(P9="","","(2)") -> (2) | R10: =IF(P9="","",入力シート!AW35) -> 0 | S10: 年 | T10: =IF(P9="","",入力シート!BE35) -> 1 | U10: 月
L11: =IF(AND(入力シート!P44=0,入力シート!W44=0),"","さらに除く年月数") -> さらに除く年月数 | P11: =IF(L11="","","その他") -> その他 | W11: =SUM(R8:R15) -> 1
D12: 教職調整額(B) | F12: =入力シート!$U$74+入力シート!$U$96 -> 11500 | I12: 円 | O12: =IF(P11="","","(3)") -> (3) | R12: =IF(P11="","",入力シート!P44) -> 1 | S12: 年 | T12: =IF(P11="","",入力シート!W44) -> 2 | U12: 月 | W12: =ROUNDDOWN((W15)/12,0) -> 0
P13: =IF(L13="","",入力シート!#REF!) ->  | W13: =MOD(W15,12) -> 7.8
O14: =IF(P13="","","(4)") ->  | R14: =IF(P13="","",入力シート!#REF!) ->  | S14: 年 | T14: =IF(P13="","",入力シート!#REF!) ->  | U14: 月
D15: 給料の調整額(C) | F15: =入力シート!AN74 -> 0 | I15: 円 | S15: =IF(O15="","","年") ->  | U15: =IF(O15="","","月") ->  | W15: =SUM(T8:T15) -> 7.8
L16: 計(ｲ) | R16: =+W11+W12 -> 1 | S16: 年 | T16: =W13 -> 7.8 | U16: 月
D18: 計(D) | F18: =F8+F12+F15 -> 435300 | I18: 円 | K18: 合計(ｳ) =(ｱ)-(ｲ) | P18: =IF(W20>0,W20,0) -> 34 | Q18: 年 | R18: =IF(X20>0,X20,0) -> 4.2 | S18: 月( | T18: =IF(AND(P18<=0,R18>=6),P18+1,P18) -> 34 | U18: 年) | W18: =W6-(W13+(W11+W12)*12) -> 412.2
J19: (C)
J20: の | K20: 定額分 | N20: 調整数 | W20: =ROUNDDOWN(W18/12,0) -> 34 | X20: =W18-W20*12 -> 4.2
C21: 合計(基本給月額)(E) | F21: =F18 -> 435300 | I21: 円 | J21: 算 | M21: × | AB21: 事由 | AD21: 年数
J22: 式 | AB22: =入力シート!B13 -> 定年扱い | AC22: =IF(AB22="自己都合",2,1) -> 1 | AD22: =T18 -> 34 | AE22: =IF(AC22=1,"",IF(AND(AC22=2,AD22>19),2,1)) ->  | AF22: =IF(AC22=2,"",IF(AND(AD22>=20,AD22<=35),6,IF(AD22>35,7,""))) -> 6
B23: 退 | F23: 職員の退職手当に関する条例第 | M23: =VLOOKUP(AE$25,X$23:Z$27,2) -> 5 | N23: 条 | O23: 第 | P23: =VLOOKUP($AE$25,$X$23:$Z$27,3) -> 1 | Q23: 項 | X23: 1 | Y23: 3 | Z23: 2 | AE23: =IF(AC22=2,"",IF(AND(AC22=1,AD22<12),3,IF(AND(AC22=1,AD22>=11,AD22<25),4,5))) -> 5 | AG23: 1 | AH23: 自己都合 | AI23: ～１９
B24: 職 | C24: 適用条項 | F24: 昭和 | G24: =IFERROR(VLOOKUP($AF$22,$X$28:$Z$29,2),"") -> 本則 | H24: 年条例第 | J24: =IFERROR(VLOOKUP($AF$22,$X$28:$AA$29,3),"") -> 附則 | L24: 号附則第 | M24: =IFERROR(VLOOKUP($AF$22,$X$28:$AA$29,4),"") -> 21 | O24: 項 | X24: 2 | Y24: 3 | Z24: 1 | AG24: 2 | AH24: 自己都合 | AI24: ２０～
B25: 手 | F25: 昭和 | G25: =IF(ISERROR(LOOKUP(#REF!,#REF!,#REF!)),"",LOOKUP(#REF!,#REF!,#REF!)) ->  | H25: 年条例第 | J25: =IF(ISERROR(LOOKUP(#REF!,#REF!,#REF!)),"",LOOKUP(#REF!,#REF!,#REF!)) ->  | L25: 号附則第 | N25: =IF(ISERROR(LOOKUP(#REF!,#REF!,#REF!)),"",LOOKUP(#REF!,#REF!,#REF!)) ->  | O25: 項 | X25: 3 | Y25: 3 | Z25: 1 | AE25: =SUM(AE22:AE24) -> 5 | AG25: 3 | AH25: 定年 | AI25: ～１１
B26: 当 | F26: 給料月額(EまたはF) | J26: (ｳ)の支給割合 | N26: 調整額 | U26: 退職手当額 | X26: 4 | Y26: 4 | Z26: 1 | AG26: 4 | AH26: 定年 | AI26: １１～２４
C27: 退職手当額の計算 | F27: =F21 -> 435300 | I27: 円 | J27: × | L27: =IFERROR(IF(支給率シート!K6="","",支給率シート!K6),0) -> 46.83015 | M27: ＋ | N27: =O28 -> 1690800 | Q27: ＝ | R27: =TRUNC(F27*L27)+N27 -> 22075964 | U27: 円 | X27: 5 | Y27: 5 | Z27: 1 | AG27: 5 | AH27: 定年 | AI27: ２５～
F28: ･ | G28: 調整額 | J28: 合計 | L28: =入力シート!$BD$148 -> 60 | M28: 月 | O28: =入力シート!$AW$146 -> 1690800 | R28: 円 | S28: =IF(ISERROR(#REF!*#REF!),"","(月額 "&#REF!&"円)") ->  | X28: 6 | Y28: 本則 | Z28: 附則 | AA28: 21 | AG28: 6 | AH28: 定年等 | AI28: ２０～３５
X29: 7 | Y29: 本則 | Z29: 附則 | AA29: 23 | AG29: 7 | AH29: 定年等 | AI29: ３６～
S31: =IF(ISERROR(#REF!*#REF!),"","(月額 "&#REF!&"円)") -> 
B32: ※退職手当額（概算） | F32: =R27 -> 22075964 | I32: 円
J33: ※ 退職時のおおよその金額です。
K34: 正確な退職手当額は経過措置や昇給等を考慮した上で
B35: 控 | C35: 徴 | D35: ①所得税 | I35: 円 | K35: 決定されることとなりますので、参考程度にお考えくださ
B36: 除 | C36: 収 | D36: ②市町村民税 | I36: 円 | K36: い。
B37: 額 | C37: 税 | D37: ③県民税 | I37: 円 | K37: また、この試算書は今後の退職手当額を保障するも
C38: 額 | D38: 計 | I38: 円 | K38: のではありません。
C39: ④給与に係る住民税 | K39: （今後の条例改正等により実際の退職手当額が試算額
C40: 一括徴収税額 | I40: 円 | K40: を下回ることがあります。）
C41: ⑤共済組合貸付償還金 | I41: 円
I42: 円 | K42: なお、実際は、左記①～⑤を控除した残額が支給額と
I43: 円 | K43: なります。
C44: =IF(OR(F44=0,F44=""),"","その他(法務局供託金)") ->  | I44: 円
C45: 合計 | I45: 円 | K45: 入力シートに入力した内容に誤りがある場合は、正しく
B46: 現金支給額 | I46: 円 | K46: 計算されません。
B47: 住民税納 | E47: 退職所得分
B48: 入市町村 | E48: 一括住民税

Sheet 支給率シート (hidden)
A1: 支給率算定シート
M2: 自己都合
M3: 定年・勧奨
D6: ※１勤続年数 | F6: =入力シート!AW43 -> 34 | J6: 支給率 | K6: =IF(F9=1,VLOOKUP($F$6,'H30.4.1'!A5:C50,3,FALSE),VLOOKUP($F$6,'H30.4.1'!A5:C50,2,FALSE)) -> 46.83015
D8: 退職区分
D9: =入力シート!B13 -> 定年扱い | F9: =IF(D9="自己都合",1,2) -> 2
D13: ※１） 育児休業、休職等の期間を除いた年数
D15: １年未満の端数は切り捨て 例）３５年６月 →３５年

Sheet 【参考】調整額区分表
A1: 退職手当の調整額に関する区分表
A3: イ １９年３月３１日までの適用区分
A4: 区分 | B4: 第１号 | C4: 第２号 | D4: 第３号 | E4: 第４号 | F4: 第５号 | G4: 第６号 | H4: 第７号 | I4: 第８号 | J4: 第９号 | K4: 第１０号
A5: 調整月額 | B5: 78750 | C5: 70400 | D5: 65000 | E5: 59550 | F5: 54150 | G5: 43350 | H5: 32500 | I5: 27100 | J5: 21700 | K5: 0
A6: 行政職 | D6: １１級 期20% | E6: １０級 期20% | F6: ９級 期15% | G6: ８級 期15% | H6: ７級 期10% | I6: ６級 期10% | J6: ５級・４級 期5% | K6: ３級・２級・１級
A7: 教育職(二) | E7: ４級 期20% | F7: ４級 管16%・管14% 期15% | G7: ４級 期15% | H7: ３級 期10% ２級期10%のうち注８の者 | I7: ２級 期10% | J7: ２級・１級 期5% | K7: ２級・１級
A8: 教育職(三) | E8: ４級 期20% | F8: ４級 管16%・管14% 期15% | G8: ４級 期15% | H8: ３級 期10% ２級期10%のうち注８の者 | I8: ２級 期10% | J8: ２級 期5% | K8: ２級・１級
A9: 研究職 | D9: ５級 管25% 期20% | E9: ５級 期20% | F9: ４級 管18% 期15% | G9: ４級 期15% ３級のうち注４の職 | H9: ３級のうち注５の職 | I9: ３級 期10% | J9: ２級 期5% | K9: ２級・１級
A10: 医療職(二) 医療職(三) | F10: ７級 期15% | G10: ６級 期15% | H10: ５級のうち注６の職 | I10: ５級 期10% | J10: ４級 期5% ３級 期5% | K10: 3級・2級・1級
A11: 技能職 | I11: ５級 期10% | J11: ４級 期5% ３級 期5% ２級 期5% | K11: ４級・３級・ ２級・１級
A13: ロ １９年４月１日から21年３月31日までの適用区分
A14: 区分 | B14: 第１号 | C14: 第２号 | D14: 第３号 | E14: 第４号 | F14: 第５号 | G14: 第６号 | H14: 第７号 | I14: 第８号 | J14: 第９号 | K14: 第１０号
A15: 調整月額 | B15: 78750 | C15: 70400 | D15: 65000 | E15: 59550 | F15: 54150 | G15: 43350 | H15: 32500 | I15: 27100 | J15: 21700 | K15: 0
A16: 行政職 | C16: １０級 期20% | D16: ９級 期20% | E16: ８級 期20% | F16: ７級 期15% | G16: ６級 期15% | H16: ５級 期10% | I16: ４級 期10% | J16: ３級 期5% | K16: ２級・１級
A17: 教育職(二) | E17: ４級 期20% | F17: ４級 管６種 期15% | G17: ４級 期15% | H17: ３級 期10% ２級期10%のうち注８の者 | I17: ２級 期10% | J17: ２級・１級 期5% | K17: ２級・１級
A18: 教育職(三) | E18: ４級 期20% | F18: ４級 管６種 期15% | G18: ４級 期15% | H18: ３級 期10% ２級期10%のうち注８の者 | I18: ２級 期10% | J18: ２級 期5% | K18: ２級・１級
A19: 研究職 | D19: ５級 管１種 期20% | E19: ５級 期20% | F19: ４級 管４種 期15% | G19: ４級 期15% ３級のうち注４の職 | H19: ３級のうち注５の職 | I19: ３級 期10% | J19: ２級 期5% | K19: ２級・１級
A20: 医療職(二) 医療職(三) | F20: ７級 期15% | G20: ６級 期15% | H20: ５級のうち注７の職 | I20: ５級 期10% | J20: ４級 期5% ３級 期5% | K20: 3級・2級・1級
A21: 技能職 | I21: ４級 期10% | J21: ３級 期5% ２級 期5% | K21: ３級・２級・１級
A23: ハ ２１年４月１日からの適用区分（技能職については平成２７年３月３１日までの適用区分）
A24: 区分 | B24: 第１号 | C24: 第２号 | D24: 第３号 | E24: 第４号 | F24: 第５号 | G24: 第６号 | H24: 第７号 | I24: 第８号 | J24: 第９号 | K24: 第１０号
A25: 調整月額 | B25: 78750 | C25: 70400 | D25: 65000 | E25: 59550 | F25: 54150 | G25: 43350 | H25: 32500 | I25: 27100 | J25: 21700 | K25: 0
A26: 行政職 | C26: １０級 期20% | D26: ９級 期20% | E26: ８級 期20% | F26: ７級 期15% | G26: ６級 期15% | H26: ５級 期10% | I26: ４級 期10% | J26: ３級 期5% | K26: ２級・１級
A27: 教育職(一) | E27: ４級 期20% | F27: ４級 管６種 期15% | G27: ４級期15% ３級管６種 | H27: ３級 期10% ２級期10%のうち注８の者 特２級のうち特２級在職４年以上又は注８の者 | I27: ２級期10% 特２級 | J27: ２級・１級 期5% | K27: ２級・１級
A28: 教育職(二) | E28: ４級 期20% | F28: ４級 管６種 期15% | G28: ４級期15% ３級管６種 | H28: ３級 期10% ２級期10%のうち注８の者 特２級のうち特２級在職４年以上又は注８の者 | I28: ２級期10% 特２級 | J28: ２級 期5% | K28: ２級・１級
A29: 研究職 | D29: ５級 管１種 期20% | E29: ５級 期20% | F29: ４級 管４種 期15% | G29: ４級 期15% ３級のうち注４の職 | H29: ３級のうち注５の職 | I29: ３級 期10% | J29: ２級 期5% | K29: ２級・１級
A30: 医療職(二) 医療職(三) | F30: ７級 期15% | G30: ６級 期15% | H30: ５級のうち注７の職 | I30: ５級 期10% | J30: ４級 期5% ３級 期5% | K30: 3級・2級・1級
A31: 技能職 | I31: ４級 期10% | J31: ３級 期5% ２級 期5% | K31: ３級・２級・１級
A33: ニ ２７年４月１日からの適用区分
A34: 区分 | B34: 第１号 | C34: 第２号 | D34: 第３号 | E34: 第４号 | F34: 第５号 | G34: 第６号 | H34: 第７号 | I34: 第８号 | J34: 第９号 | K34: 第１０号
A35: 調整月額 | B35: 78750 | C35: 70400 | D35: 65000 | E35: 59550 | F35: 54150 | G35: 43350 | H35: 32500 | I35: 27100 | J35: 21700 | K35: 0
A36: 技能職 | I36: ５級 期10% | J36: ４級 期5% ３級 期5% | K36: ４級・３級・ ２級・１級
A38: 注１ 期 ％ ： 期末手当等の役職段階別加算割合 | G38: 注８ 勤続期間が博士課程修了にあっては30年以上，修士課程修了に
A39: 注２ 管 ％ ： 管理職手当の支給割合 | G39: あっては33年以上，大学卒にあっては35年以上，短大卒にあっては
A40: 注３ 管 種 ： 管理職手当の支給額により区分 | G40: 37年以上，高校卒にあっては39年以上であった者
A41: 注４ 技術副参事，総括研究員
A42: 注５ 技術補佐，技術次長又は上席主任研究員
A43: 注６ 技術補佐，技術次長又は上席技術主幹
A44: 注７ 技術補佐，技術次長

Sheet 給料表計算シート (hidden)
A1: １ 現在の給料表
E3: 給料表 | F3: 調整額 | G3: 給与表コード
A4: 行政 | B4: =IF(入力シート!$B$65="行政",入力シート!$B$65,"") ->  | C4: =IF(B4="","",入力シート!$U$65) ->  | D4: =IF(B4="","",入力シート!$AC$65) ->  | E4: =IF(B4="","",VLOOKUP($D$16,'R7給料表'!$B$2:$C$4252,2,0)) ->  | F4: =IF(B4="","",VLOOKUP($D$17,'R7給料表'!$F$2:$G$4252,2,0)) ->  | G4: =IF(B4="","",1) -> 
A5: 教育（一） | B5: =IF(入力シート!$B$65="教育（一）",入力シート!$B$65,"") ->  | C5: =IF(B5="","",入力シート!$U$65) ->  | D5: =IF(B5="","",入力シート!$AC$65) ->  | E5: =IF(B5="","",VLOOKUP($D$16,'R7給料表'!$B$2:$C$4252,2,0)) ->  | F5: =IF(B5="","",VLOOKUP($D$17,'R7給料表'!$F$2:$G$4252,2,0)) ->  | G5: =IF(B5="","",4) -> 
A6: 教育（二） | B6: =IF(入力シート!$B$65="教育（二）",入力シート!$B$65,"") -> 教育（二） | C6: =IF(B6="","",入力シート!$U$65) -> 3 | D6: =IF(B6="","",入力シート!$AC$65) -> 50 | E6: =IF(B6="","",VLOOKUP($D$16,'R7給料表'!$B$2:$C$4252,2,0)) -> 423800 | F6: =IF(B6="","",VLOOKUP($D$17,'R7給料表'!$F$2:$G$4252,2,0)) -> 12000 | G6: =IF(B6="","",5) -> 5
A7: 研究 | B7: =IF(入力シート!$B$65="研究",入力シート!$B$65,"") ->  | C7: =IF(B7="","",入力シート!$U$65) ->  | D7: =IF(B7="","",入力シート!$AC$65) ->  | E7: =IF(B7="","",VLOOKUP($D$16,'R7給料表'!$B$2:$C$4252,2,0)) ->  | F7: =IF(B7="","",VLOOKUP($D$17,'R7給料表'!$F$2:$G$4252,2,0)) ->  | G7: =IF(B7="","",6) -> 
A8: 技能 | B8: =IF(入力シート!$B$65="技能",入力シート!$B$65,"") ->  | C8: =IF(B8="","",入力シート!$U$65) ->  | D8: =IF(B8="","",入力シート!$AC$65) ->  | E8: =IF(B8="","",VLOOKUP($D$16,'R7給料表'!$B$2:$C$4252,2,0)) ->  | F8: =IF(B8="","",VLOOKUP($D$17,'R7給料表'!$F$2:$G$4252,2,0)) ->  | G8: =IF(B8="","",10) -> 
A9: 医療（二） | B9: =IF(入力シート!$B$65="医療（二）",入力シート!$B$65,"") ->  | C9: =IF(B9="","",入力シート!$U$65) ->  | D9: =IF(B9="","",入力シート!$AC$65) ->  | E9: =IF(B9="","",VLOOKUP($D$16,'R7給料表'!$B$2:$C$4252,2,0)) ->  | F9: =IF(B9="","",VLOOKUP($D$17,'R7給料表'!$F$2:$G$4252,2,0)) ->  | G9: =IF(B9="","",8) -> 
A10: 医療（三） | B10: =IF(入力シート!$B$65="医療（三）",入力シート!$B$65,"") ->  | C10: =IF(B10="","",入力シート!$U$65) ->  | D10: =IF(B10="","",入力シート!$AC$65) ->  | E10: =IF(B10="","",VLOOKUP($D$16,'R7給料表'!$B$2:$C$4252,2,0)) ->  | F10: =IF(B10="","",VLOOKUP($D$17,'R7給料表'!$F$2:$G$4252,2,0)) ->  | G10: =IF(B10="","",9) -> 
B12: 給料月額 | E12: =MAX(E4:E10) -> 423800 | F12: =MAX(F4:F10) -> 12000
B13: 給与表コード | C13: 級 | D13: 号俸
B14: =SUM(G4:G10) -> 5 | C14: =SUM(C4:C10) -> 3 | D14: =SUM(D4:D10) -> 50
A16: 給料表 | B16: =TEXT(B14,"0")&TEXT(C14,"00")&TEXT(D14,"000") -> 503050 | D16: =B16*1 -> 503050
A17: 調整額 | B17: =TEXT(B14,"0")&TEXT(C14,"00") -> 503 | D17: =B17*1 -> 503
E18: 給料表 | F18: 調整額 | G18: 給料表コード
A19: 技能 H27 | B19: =IF(OR(入力シート!U70="",入力シート!AC70=""),"","技能") ->  | C19: =IF(B19="","",入力シート!$U$70) ->  | D19: =IF(B19="","",入力シート!$AC$70) ->  | E19: =IF(B19="","",VLOOKUP($D$25,'R7給料表'!B:D,3,0)) ->  | G19: =IF(B19="","",10) -> 
B21: 給料月額 | E21: =IF(E19="","",E19) ->  | F21: =MAX(F19:F19) -> 0
B22: 給与表コード | C22: 級 | D22: 号俸
B23: =G19 ->  | C23: =SUM(C19:C19) -> 0 | D23: =SUM(D19:D19) -> 0
A25: 給料表 | B25: =TEXT(B23,"0")&TEXT(C23,"00")&TEXT(D23,"000") -> 00000 | D25: =B25*1 -> 0

Sheet R7給料表 (hidden)
A1: 2025-04-01 | B1: 表級号 | C1: 金額 | E1: 調整額 | F1: 表級 | G1: 金額
B2: 101001 | C2: 197400 | E2: 基本額表 | F2: 101 | G2: 6700
B3: 101002 | C3: 198500 | F3: 102 | G3: 8600
B4: 101003 | C4: 199700 | F4: 103 | G4: 9800
B5: 101004 | C5: 200800 | F5: 104 | G5: 10500
B6: 101005 | C6: 201900 | F6: 105 | G6: 10800
B7: 101006 | C7: 203600 | F7: 106 | G7: 11400
B8: 101007 | C8: 205300 | F8: 107 | G8: 12300
B9: 101008 | C9: 206900 | F9: 108 | G9: 13000
B10: 101009 | C10: 208400 | F10: 109 | G10: 14700
B11: 101010 | C11: 210100 | F11: 110 | G11: 16300 | H11: 行政職
B12: 101011 | C12: 211700 | F12: 401 | G12: 9100
B13: 101012 | C13: 213300 | F13: 402 | G13: 11300
B14: 101013 | C14: 214800 | F14: 425 | G14: 11700
B15: 101014 | C15: 216600 | F15: 403 | G15: 12400
B16: 101015 | C16: 218300 | F16: 404 | G16: 13300 | H16: 教育職（１）
B17: 101016 | C17: 220000 | F17: 501 | G17: 8600
B18: 101017 | C18: 221100 | F18: 502 | G18: 11100
B19: 101018 | C19: 222700 | F19: 525 | G19: 11400
B20: 101019 | C20: 224300 | F20: 503 | G20: 12000
B21: 101020 | C21: 225800 | F21: 504 | G21: 12900 | H21: 教育職（２）
B22: 101021 | C22: 227300 | F22: 601 | G22: 8200
B23: 101022 | C23: 229000 | F23: 602 | G23: 9500
B24: 101023 | C24: 230600 | F24: 603 | G24: 11000
B25: 101024 | C25: 232200 | F25: 604 | G25: 11900
B26: 101025 | C26: 233800 | F26: 605 | G26: 14800 | H26: 研究職
B27: 101026 | C27: 235500 | F27: 801 | G27: 6300
B28: 101027 | C28: 236800 | F28: 802 | G28: 8200
B29: 101028 | C29: 238100 | F29: 803 | G29: 9300
B30: 101029 | C30: 239400 | F30: 804 | G30: 9800
B31: 101030 | C31: 240500 | F31: 805 | G31: 10700
B32: 101031 | C32: 241700 | F32: 806 | G32: 11400
B33: 101032 | C33: 242800 | F33: 807 | G33: 12300 | H33: 医療職（２）
B34: 101033 | C34: 243900 | F34: 901 | G34: 8200
B35: 101034 | C35: 244800 | F35: 902 | G35: 9500
B36: 101035 | C36: 245800 | F36: 903 | G36: 9800
B37: 101036 | C37: 246900 | F37: 904 | G37: 10200
B38: 101037 | C38: 247900 | F38: 905 | G38: 10600
B39: 101038 | C39: 248800 | F39: 906 | G39: 11800 | H39: 医療職（３）
B40: 101039 | C40: 249700
B41: 101040 | C41: 250500
B42: 101041 | C42: 251200
B43: 101042 | C43: 252000
B44: 101043 | C44: 252600
B45: 101044 | C45: 253200
B46: 101045 | C46: 253900
B47: 101046 | C47: 254500
B48: 101047 | C48: 255100
B49: 101048 | C49: 255700
B50: 101049 | C50: 256100
B51: 101050 | C51: 256700
B52: 101051 | C52: 257300
B53: 101052 | C53: 257800
B54: 101053 | C54: 258300
B55: 101054 | C55: 258700
B56: 101055 | C56: 259000
B57: 101056 | C57: 259400
B58: 101057 | C58: 259600
B59: 101058 | C59: 259900
B60: 101059 | C60: 260200
B61: 101060 | C61: 260500
B62: 101061 | C62: 260800
B63: 101062 | C63: 261100
B64: 101063 | C64: 261400
B65: 101064 | C65: 261700
B66: 101065 | C66: 262000
B67: 101066 | C67: 262300
B68: 101067 | C68: 262600
B69: 101068 | C69: 262900
B70: 101069 | C70: 263200
B71: 101070 | C71: 263500
B72: 101071 | C72: 263900
B73: 101072 | C73: 264200
B74: 101073 | C74: 264500
B75: 101074 | C75: 264800
B76: 101075 | C76: 265100
B77: 101076 | C77: 265400
B78: 101077 | C78: 265700
B79: 101078 | C79: 266000
B80: 101079 | C80: 266300
B81: 101080 | C81: 266700
B82: 101081 | C82: 267000
B83: 101082 | C83: 267100
B84: 101083 | C84: 267400
B85: 101084 | C85: 267800
B86: 101085 | C86: 268100
B87: 101086 | C87: 268400
B88: 101087 | C88: 268700
B89: 101088 | C89: 269000
B90: 101089 | C90: 269300
B91: 101090 | C91: 269700
B92: 101091 | C92: 270000
B93: 101092 | C93: 270300
B94: 101093 | C94: 270700
B95: 102001 | C95: 243900
B96: 102002 | C96: 245300
B97: 102003 | C97: 246600
B98: 102004 | C98: 248100
B99: 102005 | C99: 249500
B100: 102006 | C100: 250900
B101: 102007 | C101: 252300
B102: 102008 | C102: 253700
B103: 102009 | C103: 255100
B104: 102010 | C104: 256300
B105: 102011 | C105: 257600
B106: 102012 | C106: 259000
B107: 102013 | C107: 260200
B108: 102014 | C108: 261400
B109: 102015 | C109: 262600
B110: 102016 | C110: 263800
B111: 102017 | C111: 265000
B112: 102018 | C112: 266100
B113: 102019 | C113: 267200
B114: 102020 | C114: 268300
B115: 102021 | C115: 269200
B116: 102022 | C116: 270200
B117: 102023 | C117: 271200
B118: 102024 | C118: 272200
B119: 102025 | C119: 273300
B120: 102026 | C120: 274100
B121: 102027 | C121: 274800
B122: 102028 | C122: 275700
B123: 102029 | C123: 276600
B124: 102030 | C124: 277400
B125: 102031 | C125: 278200
B126: 102032 | C126: 278900
B127: 102033 | C127: 279600
B128: 102034 | C128: 280400
B129: 102035 | C129: 281200
B130: 102036 | C130: 281800
B131: 102037 | C131: 282500
B132: 102038 | C132: 283300
B133: 102039 | C133: 284100
B134: 102040 | C134: 284800
B135: 102041 | C135: 285500
B136: 102042 | C136: 286200
B137: 102043 | C137: 286900
B138: 102044 | C138: 287600
B139: 102045 | C139: 288400
B140: 102046 | C140: 288900
B141: 102047 | C141: 289600
B142: 102048 | C142: 290200
B143: 102049 | C143: 291100
B144: 102050 | C144: 291400
B145: 102051 | C145: 292200
B146: 102052 | C146: 292900
B147: 102053 | C147: 293400
B148: 102054 | C148: 294000
B149: 102055 | C149: 294600
B150: 102056 | C150: 295300
B151: 102057 | C151: 295900
B152: 102058 | C152: 296600
B153: 102059 | C153: 297200
B154: 102060 | C154: 297900
B155: 102061 | C155: 298500
B156: 102062 | C156: 299100
B157: 102063 | C157: 299600
B158: 102064 | C158: 300100
B159: 102065 | C159: 300600
B160: 102066 | C160: 301200
B161: 102067 | C161: 301700
B162: 102068 | C162: 302300
B163: 102069 | C163: 302700
B164: 102070 | C164: 303200
B165: 102071 | C165: 303600
B166: 102072 | C166: 304300
B167: 102073 | C167: 304900
B168: 102074 | C168: 305200
B169: 102075 | C169: 305500
B170: 102076 | C170: 305800
B171: 102077 | C171: 305900
B172: 102078 | C172: 306300
B173: 102079 | C173: 306500
B174: 102080 | C174: 306800
B175: 102081 | C175: 307000
B176: 102082 | C176: 307200
B177: 102083 | C177: 307500
B178: 102084 | C178: 307700
B179: 102085 | C179: 308000
B180: 102086 | C180: 308300
B181: 102087 | C181: 308600
B182: 102088 | C182: 308900
B183: 102089 | C183: 309200
B184: 102090 | C184: 309500
B185: 102091 | C185: 309800
B186: 102092 | C186: 310100
B187: 102093 | C187: 310200
B188: 102094 | C188: 310400
B189: 102095 | C189: 310800
B190: 102096 | C190: 311200
B191: 102097 | C191: 311400
B192: 102098 | C192: 311700
B193: 102099 | C193: 312000
B194: 102100 | C194: 312400
B195: 102101 | C195: 312600
B196: 102102 | C196: 312900
B197: 102103 | C197: 313200
B198: 102104 | C198: 313500
B199: 102105 | C199: 313700
B200: 102106 | C200: 314000
... 4052 more rows

Sheet （除算） (hidden)
B2: 〇休職 〇停職 〇大学院修学休業 〇育児休業 | D2: 月の初日から末日まで勤務しない月が１月以上あったときは、その月数の２分の１ （例）休職期間 平成２５年２月１４日～平成２６年２月１３日の場合 平成２５年３月 ～ 平成２６年１月までの １１月×１/２＝５．５月が除算となる ※ただし、育児休業の場合は、当該育児休業に係る子が１歳に達した日の属する月まで の期間については、その月数の３分の１
B6: 〇高齢者部分休業の期間 | D6: ７時間４５分をもって１日とし、３０日をもって１月として換算した月数の２分の１
B8: 〇組合専従の期間 〇自己啓発等休業 〇配偶者同行休業 | D8: 月の初日から末日まで勤務しない月が１月以上あったときは、その月数の全部の月数 ※ただし、自己啓発等休業のうち、公務運営に特に資するものと認められること等要件に 該当する場合は、その月数の２分の１

Sheet （計算方法） (hidden)
A6: ※ | B6: 退職手当の給料月額 | E6: ＝ | F6: 本俸（給料表の月額） | I6: ＋ | J6: 教職調整額 | L6: ＋ | M6: 給料の調整額
L7: （福利厚生ハンドブック 26貢参照）
B9: 本俸 | D9: ・・・・・ | E9: 給料表上の月額です。
B11: 教職調整額 | D11: ・・・・・ | E11: 校長（県立） ３，８００円 （小中） ４，０００円 ／ 副校長・教頭 １１，５００円 ／教諭 給料表上の月額×５％ （R8.4.1現在）
B13: 給料の調整額 | D13: ・・・・・ | E13: 特別支援学校（学級）に従事する教員が該当します。調整基本額×１．００ （R8.4.1現在）

Sheet H30.4.1 (hidden)
F1: 新支給率
D2: 新
B3: 勧奨 | C3: 自己都合 | G3: 1985-03-31 | H3: =DATEVALUE(G3) -> 
A4: 年 数
A5: 0 | C5: 0
A6: 1 | B6: 0.837 | C6: 0.5022
A7: 2 | B7: 1.674 | C7: 1.0044
A8: 3 | B8: 2.511 | C8: 1.5066
A9: 4 | B9: 3.348 | C9: 2.0088
A10: 5 | B10: 4.185 | C10: 2.511
A11: 6 | B11: 5.022 | C11: 3.0132
A12: 7 | B12: 5.859 | C12: 3.5154
A13: 8 | B13: 6.696 | C13: 4.0176
A14: 9 | B14: 7.533 | C14: 4.5198
A15: 10 | B15: 8.37 | C15: 5.022
A16: 11 | B16: 11.613375 | C16: 7.43256
A17: 12 | B17: 12.76425 | C17: 8.16912
A18: 13 | B18: 13.915125 | C18: 8.90568
A19: 14 | B19: 15.066 | C19: 9.64224
A20: 15 | B20: 16.216875 | C20: 10.3788
A21: 16 | B21: 17.890875 | C21: 12.88143
A22: 17 | B22: 19.564875 | C22: 14.08671
A23: 18 | B23: 21.238875 | C23: 15.29199
A24: 19 | B24: 22.912875 | C24: 16.49727
A25: 20 | B25: 24.586875 | C25: 19.6695
A26: 21 | B26: 26.260875 | C26: 21.3435
A27: 22 | B27: 27.934875 | C27: 23.0175
A28: 23 | B28: 29.608875 | C28: 24.6915
A29: 24 | B29: 31.282875 | C29: 26.3655
A30: 25 | B30: 33.27075 | C30: 28.0395
A31: 26 | B31: 34.77735 | C31: 29.3787
A32: 27 | B32: 36.28395 | C32: 30.7179
A33: 28 | B33: 37.79055 | C33: 32.0571
A34: 29 | B34: 39.29715 | C34: 33.3963
A35: 30 | B35: 40.80375 | C35: 34.7355
A36: 31 | B36: 42.31035 | C36: 35.7399
A37: 32 | B37: 43.81695 | C37: 36.7443
A38: 33 | B38: 45.32355 | C38: 37.7487
A39: 34 | B39: 46.83015 | C39: 38.7531
A40: 35 | B40: 47.709 | C40: 39.7575
A41: 36 | B41: 47.709 | C41: 40.7619
A42: 37 | B42: 47.709 | C42: 41.7663
A43: 38 | B43: 47.709 | C43: 42.7707
A44: 39 | B44: 47.709 | C44: 43.7751
A45: 40 | B45: 47.709 | C45: 44.7795
A46: 41 | B46: 47.709 | C46: 45.7839
A47: 42 | B47: 47.709 | C47: 46.7883
A48: 43 | B48: 47.709 | C48: 47.709
A49: 44 | B49: 47.709 | C49: 47.709
A50: 45 | B50: 47.709 | C50: 47.709
